fUST/lending_fUST_20241105
["ID","MTS","AMOUNT","RATE_DAILY","PERIOD"]
[341339547,1730818261029,-1368.03,0.00032328,3]
[341339549,1730818261039,-500.0,0.00032328,3]
[341339551,1730818261048,-204.86775267,0.00032328,3]
[341339553,1730818261058,-601.61,0.00032328,3]
[341339555,1730818261072,-800.4,0.00032328,3]
[341339557,1730818261082,-500.0,0.00032328,3]
[341339559,1730818261092,-500.0,0.00032328,3]
[341339561,1730818261102,-509.5708628,0.0003242,2]
[341339563,1730818261111,-823.0,0.00032439,2]
[341339565,1730818261120,-1899.81237125,0.00032513,2]
[341339567,1730818261129,-1528.66,0.000326,2]
[341339570,1730818261139,-500.0,0.00032602,3]
[341339571,1730818261148,-500.0,0.00032602,3]
[341339573,1730818261157,-500.0,0.00032602,3]
[341339575,1730818261167,-500.0,0.00032602,3]
[341339578,1730818261176,-500.0,0.00032602,3]
[341339580,1730818261185,-550.95904175,0.00032602,3]
[341339582,1730818261194,-6430.77,0.00032602,3]
[341339584,1730818261204,-500.0,0.00032602,2]
[341339586,1730818261213,-536.46,0.00032602,3]
[341339588,1730818261222,-1182.57,0.00032602,3]
[341339590,1730818261234,-500.0,0.00032602,3]
[341339592,1730818261245,-500.0,0.00032602,3]
[341339594,1730818261254,-500.0,0.00032602,3]
[341339596,1730818261264,-500.0,0.00032602,3]
[341339598,1730818261274,-4342.61,0.00032602,3]
[341339600,1730818261284,-2792.42,0.00032602,3]
[341339602,1730818261293,-500.0,0.00032602,3]
[341339604,1730818261303,-10907.81,0.00032602,3]
[341339606,1730818261320,-1203.2,0.00032602,3]
[341339608,1730818261329,-2294.71,0.00032602,3]
[341339610,1730818261338,-1321.17,0.00032602,3]
[341339612,1730818261348,-500.0,0.00032602,3]
[341339614,1730818261357,-2053.35,0.00032602,3]
[341339616,1730818261367,-500.0,0.00032602,3]
[341339618,1730818261376,-655.41,0.00032602,3]
[341339620,1730818261386,-500.0,0.00032602,3]
[341339623,1730818261397,-500.0,0.00032602,3]
[341339625,1730818261406,-1368.03,0.00032602,3]
[341339627,1730818261415,-500.0,0.00032602,3]
[341339628,1730818261424,-601.61,0.00032602,3]
[341339631,1730818261434,-800.4,0.00032602,3]
[341339633,1730818261443,-500.0,0.00032602,3]
[341339635,1730818261453,-500.0,0.00032602,3]
[341339637,1730818261463,-299.50025827,0.00032668,5]
[341339639,1730818261472,-5315.8827348,0.00032672,2]
[341339641,1730818261481,-500.0,0.00032876,3]
[341339643,1730818261490,-500.0,0.00032876,3]
[341339651,1730818261499,-1000.0,0.00032876,30]
[341339653,1730818261566,-709.11394042,0.00032876,30]
[341339654,1730818261575,-500.0,0.00032876,7]
[341339657,1730818261586,-500.0,0.00032876,3]
[341339659,1730818261596,-500.0,0.00032876,3]
[341339661,1730818261605,-500.0,0.00032876,3]
[341339663,1730818261614,-188.0,0.00032876,3]
[341339665,1730818261623,-188.0,0.00032876,3]
[341339667,1730818261632,-188.0,0.00032876,3]
[341339669,1730818261642,-188.0,0.00032876,3]
[341339671,1730818261651,-188.0,0.00032876,3]
[341339673,1730818261660,-188.0,0.00032876,3]
[341339675,1730818261669,-194.95554198,0.00032876,3]
[341339677,1730818261678,-6430.77,0.00032876,3]
[341339679,1730818261688,-500.0,0.00032876,2]
[341339681,1730818261697,-536.46,0.00032876,3]
[341339683,1730818261706,-500.0,0.00032876,7]
[341339685,1730818261716,-500.0,0.00032876,7]
[341339687,1730818261725,-500.0,0.00032876,7]
[341339689,1730818261736,-500.0,0.00032876,7]
[341339691,1730818261745,-500.0,0.00032876,7]
[341339693,1730818261754,-595.21634557,0.00032876,7]
[341339695,1730818261763,-1182.57,0.00032876,3]
[341339697,1730818261773,-434.26821633,0.00032876,3]
[341339699,1730818261782,-500.0,0.00032876,3]
[341339701,1730818261791,-500.0,0.00032876,3]
[341339703,1730818261801,-500.0,0.00032876,3]
[341339705,1730818261819,-4342.61,0.00032876,3]
[341339707,1730818261828,-2792.42,0.00032876,3]
[341339709,1730818261838,-500.0,0.00032876,3]
[341339711,1730818261848,-10907.81,0.00032876,3]
[341339713,1730818261858,-500.0,0.00032876,120]
[341339715,1730818261867,-500.0,0.00032876,120]
[341339717,1730818261877,-500.0,0.00032876,120]
[341339719,1730818261886,-500.0,0.00032876,120]
[341339721,1730818261895,-500.0,0.00032876,120]
[341339724,1730818261905,-500.0,0.00032876,120]
[341339726,1730818261915,-500.0,0.00032876,120]
[341339728,1730818261924,-500.0,0.00032876,120]
[341339730,1730818261934,-500.0,0.00032876,120]
[341339732,1730818261943,-500.0,0.00032876,120]
[341339734,1730818261953,-626.71817245,0.00032876,120]
[341339736,1730818261962,-1203.2,0.00032876,3]
[341339738,1730818261972,-2294.71,0.00032876,3]
[341339740,1730818261981,-1321.17,0.00032876,3]
[341339742,1730818261991,-500.0,0.00032876,3]
[341339744,1730818262000,-1000.0,0.00032876,2]
[341339746,1730818262010,-1000.0,0.00032876,2]
[341339748,1730818262019,-1000.0,0.00032876,2]
[341339750,1730818262029,-1000.0,0.00032876,2]
[341339752,1730818262038,-1000.0,0.00032876,2]
[341339754,1730818262047,-1000.0,0.00032876,2]
[341339756,1730818262057,-176.03445442,0.00032876,2]
[341339758,1730818262074,-2053.35,0.00032876,3]
[341339760,1730818262083,-500.0,0.00032876,3]
[341339762,1730818262093,-655.41,0.00032876,3]
[341339764,1730818262102,-1502.81459949,0.00032876,2]
[341339766,1730818262111,-500.0,0.00032876,3]
[341339768,1730818262121,-500.0,0.00032876,3]
[341339770,1730818262131,-1368.03,0.00032876,3]
[341339772,1730818262140,-308.31852558,0.00032876,3]
[341339774,1730818262149,-601.61,0.00032876,3]
[341339776,1730818262159,-800.4,0.00032876,3]
[341339778,1730818262168,-500.0,0.00032876,3]
[341339780,1730818262178,-197.24202638,0.00032876,2]
[341339782,1730818262187,-399.3076349,0.00032876,2]
[341339784,1730818262197,-202.2201414,0.00032876,2]
[341339787,1730818262206,-432.10275164,0.00032876,2]
[341339788,1730818262215,-441.12992164,0.00032876,2]
[341339791,1730818262225,-338.27084544,0.00032876,2]
[341339793,1730818262239,-184.33424174,0.00032876,2]
[341339795,1730818262248,-460.86514013,0.00032876,2]
[341339797,1730818262257,-185.01265606,0.00032876,2]
[341339799,1730818262268,-500.0,0.00032876,2]
[341339801,1730818262278,-500.0,0.00032876,2]
[341339803,1730818262287,-500.0,0.00032876,2]
[341339805,1730818262297,-500.0,0.00032876,2]
[341339807,1730818262307,-347.53513528,0.00032876,2]
[341339808,1730818262320,-500.0,0.00032876,2]
[341339811,1730818262330,-500.0,0.00032876,2]
[341339813,1730818262340,-500.0,0.00032876,2]
[341339815,1730818262349,-500.0,0.00032876,3]
[341339817,1730818262358,-192.588683,0.00032877,120]
[341339819,1730818262368,-388.5038609,0.00032877,30]
[341339820,1730818262377,-509.5708628,0.0003292,2]
[341339822,1730818262386,-337.21915529,0.00033,2]
[341339824,1730818262396,-35266.79063732,0.00033,2]
[341339826,1730818262405,-500.0,0.00033,40]
[341339828,1730818262414,-252.0,0.00033,2]
[341339830,1730818262423,-3209.646,0.00033031,2]
[341339832,1730818262433,-198.627615,0.00033117,2]
[341339834,1730818262441,-449.203559,0.00033117,2]
[341339836,1730818262450,-157.856239,0.00033117,2]
[341339838,1730818262459,-172.089293,0.00033117,2]
[341339840,1730818262468,-500.0,0.0003315,3]
[341339842,1730818262478,-500.0,0.0003315,3]
[341339844,1730818262487,-412.68763794,0.0003315,3]
[341339846,1730818262497,-500.0,0.0003315,3]
[341339848,1730818262506,-500.0,0.0003315,3]
[341339850,1730818262515,-6430.77,0.0003315,3]
[341339852,1730818262524,-500.0,0.0003315,2]
[341339854,1730818262533,-536.46,0.0003315,3]
[341339856,1730818262542,-1182.57,0.0003315,3]
[341339858,1730818262552,-500.0,0.0003315,3]
[341339860,1730818262565,-500.0,0.0003315,3]
[341339862,1730818262574,-500.0,0.0003315,3]
[341339864,1730818262582,-4342.61,0.0003315,3]
[341339866,1730818262591,-2792.42,0.0003315,3]
[341339868,1730818262601,-500.0,0.0003315,3]
[341339870,1730818262609,-10907.81,0.0003315,3]
[341339872,1730818262619,-1203.2,0.0003315,3]
[341339874,1730818262628,-2294.71,0.0003315,3]
[341339876,1730818262637,-1321.17,0.0003315,3]
[341339878,1730818262646,-500.0,0.0003315,3]
[341339885,1730818262708,-2053.35,0.0003315,3]
[341339887,1730818262718,-500.0,0.0003315,3]
[341339889,1730818262729,-655.41,0.0003315,3]
[341339891,1730818262739,-500.0,0.0003315,3]
[341339893,1730818262748,-500.0,0.0003315,3]
[341339895,1730818262757,-1368.03,0.0003315,3]
[341339897,1730818262767,-601.61,0.0003315,3]
[341339899,1730818262778,-800.4,0.0003315,3]
[341339901,1730818262787,-500.0,0.0003315,3]
[341339903,1730818262798,-500.0,0.0003315,3]
[341339905,1730818262812,-151.0,0.00033151,120]
[341339907,1730818262822,-154.0,0.00033226,2]
[341339909,1730818262831,-903.34,0.000333,30]
[341339911,1730818262840,-3579.41,0.000333,30]
[341339913,1730818262850,-160.0,0.00033327,3]
[341339915,1730818262860,-225.569899,0.00033396,2]
[341339917,1730818262870,-509.5708628,0.0003342,2]
[341339919,1730818262879,-500.0,0.00033424,3]
[341339921,1730818262889,-500.0,0.00033424,3]
[341339923,1730818262898,-500.0,0.00033424,3]
[341339925,1730818262908,-500.0,0.00033424,3]
[341339927,1730818262917,-6430.77,0.00033424,3]
[341339929,1730818262927,-521.32067998,0.00033424,2]
[341339931,1730818262936,-536.46,0.00033424,3]
[341339933,1730818262946,-1182.57,0.00033424,3]
[341339935,1730818262955,-500.0,0.00033424,3]
[341339937,1730818262965,-500.0,0.00033424,3]
[341339939,1730818262974,-500.0,0.00033424,3]
[341339941,1730818262984,-4342.61,0.00033424,3]
[341339943,1730818262994,-2792.42,0.00033424,3]
[341339945,1730818263003,-500.0,0.00033424,3]
[341339947,1730818263013,-10907.81,0.00033424,3]
[341339949,1730818263022,-1203.2,0.00033424,3]
[341339951,1730818263032,-2294.71,0.00033424,3]
[341339953,1730818263041,-1321.17,0.00033424,3]
[341339955,1730818263051,-500.0,0.00033424,3]
[341339957,1730818263065,-2053.35,0.00033424,3]
[341339959,1730818263074,-500.0,0.00033424,3]
[341339961,1730818263084,-655.41,0.00033424,3]
[341339963,1730818263094,-500.0,0.00033424,3]
[341339965,1730818263104,-252.91829657,0.00033424,3]
[341339967,1730818263114,-1368.03,0.00033424,3]
[341339969,1730818263123,-601.61,0.00033424,3]
[341339971,1730818263133,-800.4,0.00033424,3]
[341339973,1730818263143,-500.0,0.00033424,3]
[341339975,1730818263152,-500.0,0.00033424,3]
[341339977,1730818263162,-340.0,0.00033425,30]
[341339979,1730818263171,-588.27,0.000335,30]
[341339981,1730818263180,-152.24,0.000335,31]
[341339982,1730818263190,-152.24,0.000335,31]
[341339984,1730818263199,-152.24,0.000335,31]
[341339986,1730818263209,-152.24,0.000335,31]
[341339988,1730818263218,-152.24,0.000335,31]
[341339990,1730818263228,-152.24,0.000335,31]
[341339992,1730818263241,-152.24,0.000335,31]
[341339994,1730818263250,-152.24,0.000335,31]
[341339996,1730818263260,-152.24,0.000335,31]
[341339998,1730818263270,-152.24,0.000335,31]
[341340000,1730818263279,-449.203559,0.00033531,2]
[341340002,1730818263289,-162.859,0.0003355,2]
[341340004,1730818263298,-323.93,0.00033566,30]
[341340005,1730818263307,-200.0,0.00033581,30]
[341340007,1730818263321,-150.64205859,0.00033593,2]
[341340009,1730818263334,-5012.0,0.00033598,30]
[341340011,1730818263343,-1729.15,0.000336,30]
[341340013,1730818263353,-2336.19,0.000336,30]
[341340015,1730818263363,-190.67,0.00033641,30]
[341340017,1730818263372,-6832.69,0.00033641,30]
[341340019,1730818263383,-10000.0,0.00033641,30]
[341340021,1730818263392,-10000.0,0.00033641,30]
[341340023,1730818263403,-10000.0,0.00033641,30]
[341340025,1730818263413,-8897.33,0.00033641,30]
[341340027,1730818263423,-767.0,0.00033655,2]
[341340029,1730818263435,-529.54,0.00033661,30]
[341340031,1730818263445,-157.1,0.00033669,30]
[341340033,1730818263456,-155.0,0.00033697,30]
[341340035,1730818263466,-155.0,0.00033697,30]
[341340037,1730818263476,-155.0,0.00033697,30]
[341340039,1730818263486,-155.0,0.00033697,30]
[341340041,1730818263495,-155.0,0.00033697,30]
[341340043,1730818263506,-155.0,0.00033697,30]
[341340045,1730818263517,-174.80981786,0.00033697,30]
[341340047,1730818263528,-500.0,0.00033698,3]
[341340049,1730818263538,-500.0,0.00033698,3]
[341340051,1730818263548,-500.0,0.00033698,10]
[341340053,1730818263558,-504.92581586,0.00033698,3]
[341340055,1730818263572,-500.0,0.00033698,3]
[341340057,1730818263581,-6430.77,0.00033698,3]
[341340059,1730818263591,-536.46,0.00033698,3]
[341340061,1730818263601,-1182.57,0.00033698,3]
[341340063,1730818263611,-500.0,0.00033698,3]
[341340065,1730818263624,-500.0,0.00033698,3]
[341340067,1730818263633,-500.0,0.00033698,3]
[341340069,1730818263643,-4342.61,0.00033698,3]
[341340071,1730818263653,-2792.42,0.00033698,3]
[341340073,1730818263663,-500.0,0.00033698,3]
[341340075,1730818263673,-10907.81,0.00033698,3]
[341340077,1730818263682,-1203.2,0.00033698,3]
[341340079,1730818263691,-2294.71,0.00033698,3]
[341340081,1730818263701,-1321.17,0.00033698,3]
[341340083,1730818263711,-500.0,0.00033698,3]
[341340085,1730818263720,-2053.35,0.00033698,3]
[341340087,1730818263729,-500.0,0.00033698,3]
[341340089,1730818263740,-655.41,0.00033698,3]
[341340096,1730818263795,-500.0,0.00033698,3]
[341340098,1730818263812,-1368.03,0.00033698,3]
[341340100,1730818263821,-601.61,0.00033698,3]
[341340101,1730818263831,-800.4,0.00033698,3]
[341340103,1730818263840,-500.0,0.00033698,3]
[341340105,1730818263850,-500.0,0.00033698,3]
[341340107,1730818263860,-509.5708628,0.0003392,2]
[341340109,1730818263869,-198.627615,0.00033945,2]
[341340111,1730818263879,-449.203559,0.00033945,2]
[341340113,1730818263889,-500.0,0.00033972,3]
[341340115,1730818263899,-500.0,0.00033972,3]
[341340117,1730818263908,-500.0,0.00033972,3]
[341340118,1730818263917,-6430.77,0.00033972,3]
[341340120,1730818263927,-536.46,0.00033972,3]
[341340122,1730818263937,-1182.57,0.00033972,3]
[341340124,1730818263947,-500.0,0.00033972,3]
[341340126,1730818263957,-500.0,0.00033972,3]
[341340128,1730818263966,-500.0,0.00033972,3]
[341340130,1730818263976,-4342.61,0.00033972,3]
[341340132,1730818263986,-2792.42,0.00033972,3]
[341340134,1730818263996,-500.0,0.00033972,3]
[341340136,1730818264005,-10907.81,0.00033972,3]
[341340138,1730818264016,-1203.2,0.00033972,3]
[341340140,1730818264025,-2294.71,0.00033972,3]
[341340142,1730818264036,-1321.17,0.00033972,3]
[341340144,1730818264046,-500.0,0.00033972,3]
[341340146,1730818264056,-2053.35,0.00033972,3]
[341340148,1730818264073,-500.0,0.00033972,3]
[341340150,1730818264083,-655.41,0.00033972,3]
[341340152,1730818264094,-356.26094206,0.00033972,3]
[341340154,1730818264104,-1368.03,0.00033972,3]
[341340156,1730818264113,-1942.41,0.00033972,120]
[341340158,1730818264124,-601.61,0.00033972,3]
[341340160,1730818264133,-800.4,0.00033972,3]
[341340162,1730818264144,-500.0,0.00033972,3]
[341340164,1730818264154,-273.61229235,0.00033972,3]
[341340166,1730818264165,-3448.29608054,0.0003398,4]
[341340168,1730818264174,-5315.8827348,0.00033991,2]
[341340170,1730818264183,-1000.0,0.00034,2]
[341340172,1730818264193,-803.466863,0.00034,43]
[341340174,1730818264202,-1500.0,0.00034047,5]
[341340176,1730818264212,-500.0,0.00034047,5]
[341340178,1730818264221,-1500.0,0.00034047,5]
[341340180,1730818264234,-1002.40989633,0.00034047,5]
[341340182,1730818264244,-500.0,0.00034246,3]
[341340184,1730818264254,-500.0,0.00034246,3]
[341340186,1730818264264,-500.0,0.00034246,3]
[341340187,1730818264275,-6430.77,0.00034246,3]
[341340189,1730818264284,-536.46,0.00034246,3]
[341340191,1730818264295,-1182.57,0.00034246,3]
[341340193,1730818264305,-500.0,0.00034246,3]
[341340195,1730818264319,-500.0,0.00034246,3]
[341340197,1730818264329,-500.0,0.00034246,3]
[341340199,1730818264339,-4342.61,0.00034246,3]
[341340201,1730818264350,-2792.42,0.00034246,3]
[341340203,1730818264359,-500.0,0.00034246,3]
[341340205,1730818264369,-10907.81,0.00034246,3]
[341340207,1730818264379,-1203.2,0.00034246,3]
[341340208,1730818264388,-2294.71,0.00034246,3]
[341340210,1730818264398,-1321.17,0.00034246,3]
[341340212,1730818264409,-500.0,0.00034246,3]
[341340214,1730818264419,-2053.35,0.00034246,3]
[341340216,1730818264428,-475.47450202,0.00034246,3]
[341340218,1730818264438,-655.41,0.00034246,3]
[341340220,1730818264450,-1368.03,0.00034246,3]
[341340222,1730818264459,-601.61,0.00034246,3]
[341340224,1730818264469,-800.4,0.00034246,3]
[341340226,1730818264478,-500.0,0.00034246,3]
[341340228,1730818264488,-160.0,0.00034259,4]
[341340230,1730818264498,-500.0,0.00034341,3]
[341340232,1730818264509,-500.0,0.00034341,3]
[341340234,1730818264519,-500.0,0.00034341,3]
[341340236,1730818264529,-500.0,0.00034341,3]
[341340238,1730818264538,-500.0,0.00034341,3]
[341340239,1730818264549,-500.0,0.00034341,3]
[341340240,1730818264561,-500.0,0.00034341,3]
[341340241,1730818264571,-500.0,0.00034341,3]
[341340242,1730818264581,-449.203559,0.00034359,2]
[341340243,1730818264591,-500.0,0.00034385,3]
[341340244,1730818264601,-500.0,0.00034385,3]
[341340245,1730818264611,-500.0,0.00034385,3]
[341340246,1730818264621,-500.0,0.00034385,3]
[341340247,1730818264630,-500.0,0.00034385,3]
[341340248,1730818264640,-500.0,0.00034385,3]
[341340249,1730818264650,-500.0,0.00034385,3]
[341340250,1730818264660,-500.0,0.00034385,3]
[341340251,1730818264670,-500.0,0.00034385,3]
[341340252,1730818264680,-211.8,0.000344,120]
[341340253,1730818264690,-152.87,0.00034479,6]
[341340254,1730818264700,-903.34,0.000345,30]
[341340255,1730818264709,-3579.41,0.000345,30]
[341340256,1730818264721,-336.05263262,0.0003452,3]
[341340257,1730818264730,-500.0,0.0003452,3]
[341340258,1730818264739,-500.0,0.0003452,13]
[341340259,1730818264750,-500.0,0.0003452,3]
[341340260,1730818264759,-6430.77,0.0003452,3]
[341340264,1730818264768,-536.46,0.0003452,3]
[341340266,1730818264827,-1182.57,0.0003452,3]
[341340268,1730818264837,-500.0,0.0003452,3]
[341340270,1730818264847,-500.0,0.0003452,3]
[341340272,1730818264857,-500.0,0.0003452,3]
[341340274,1730818264867,-4342.61,0.0003452,3]
[341340276,1730818264877,-2792.42,0.0003452,3]
[341340278,1730818264887,-500.0,0.0003452,3]
[341340280,1730818264897,-10907.81,0.0003452,3]
[341340282,1730818264907,-1203.2,0.0003452,3]
[341340284,1730818264916,-2294.71,0.0003452,3]
[341340286,1730818264925,-1321.17,0.0003452,3]
[341340288,1730818264935,-500.0,0.0003452,3]
[341340290,1730818264944,-2053.35,0.0003452,3]
[341340292,1730818264954,-655.41,0.0003452,3]
[341340294,1730818264964,-1368.03,0.0003452,3]
[341340296,1730818264973,-601.61,0.0003452,3]
[341340298,1730818264983,-800.4,0.0003452,3]
[341340300,1730818264993,-500.0,0.0003452,3]
[341340302,1730818265002,-151.0,0.00034603,120]
[341340304,1730818265011,-506.0,0.0003471,3]
[341340306,1730818265020,-500.0,0.0003471,3]
[341340307,1730818265029,-500.0,0.0003471,3]
[341340309,1730818265038,-157.856239,0.00034773,2]
[341340311,1730818265048,-172.089293,0.00034773,2]
[341340313,1730818265058,-198.627615,0.00034773,2]
[341340315,1730818265071,-449.203559,0.00034773,2]
[341340317,1730818265081,-500.0,0.00034794,3]
[341340319,1730818265091,-6430.77,0.00034794,3]
[341340321,1730818265102,-536.46,0.00034794,3]
[341340324,1730818265113,-1182.57,0.00034794,3]
[341340325,1730818265124,-500.0,0.00034794,3]
[341340327,1730818265134,-500.0,0.00034794,3]
[341340329,1730818265144,-500.0,0.00034794,3]
[341340331,1730818265154,-4342.61,0.00034794,3]
[341340333,1730818265165,-2792.42,0.00034794,3]
[341340335,1730818265174,-500.0,0.00034794,3]
[341340337,1730818265184,-10907.81,0.00034794,3]
[341340339,1730818265193,-1203.2,0.00034794,3]
[341340341,1730818265203,-2294.71,0.00034794,3]
[341340343,1730818265212,-1321.17,0.00034794,3]
[341340345,1730818265223,-500.0,0.00034794,3]
[341340347,1730818265233,-2053.35,0.00034794,3]
[341340349,1730818265246,-655.41,0.00034794,3]
[341340351,1730818265256,-1368.03,0.00034794,3]
[341340353,1730818265266,-601.61,0.00034794,3]
[341340355,1730818265275,-800.4,0.00034794,3]
[341340357,1730818265286,-230.58055278,0.00034794,3]
[341340359,1730818265296,-1000.0,0.000348,3]
[341340361,1730818265305,-445.0,0.000348,10]
[341340363,1730818265319,-1899.81237125,0.0003486,2]
[341340365,1730818265329,-1942.41,0.00034931,120]
[341340367,1730818265338,-1000.0,0.00034999,2]
[341340369,1730818265348,-10484.43410752,0.00035,2]
[341340371,1730818265358,-500.0,0.00035,4]
[341340373,1730818265368,-588.27,0.00035,30]
[341340375,1730818265377,-1729.15,0.00035,30]
[341340377,1730818265386,-2336.19,0.00035,30]
[341340379,1730818265397,-168.79379705,0.00035,120]
[341340381,1730818265407,-4071.21372906,0.00035,120]
[341340383,1730818265417,-300.0,0.00035,2]
[341340385,1730818265427,-300.000001,0.00035,30]
[341340387,1730818265437,-504.34641589,0.00035,5]
[341340389,1730818265447,-152.24,0.00035,31]
[341340391,1730818265456,-152.24,0.00035,31]
[341340393,1730818265467,-152.24,0.00035,31]
[341340395,1730818265477,-152.24,0.00035,31]
[341340397,1730818265486,-152.24,0.00035,31]
[341340399,1730818265496,-152.24,0.00035,31]
[341340401,1730818265506,-152.24,0.00035,31]
[341340403,1730818265517,-152.24,0.00035,31]
[341340405,1730818265528,-152.24,0.00035,31]
[341340407,1730818265537,-152.24,0.00035,31]
[341340409,1730818265546,-152.24,0.00035,31]
[341340410,1730818265556,-152.24,0.00035,31]
[341340412,1730818265569,-152.24,0.00035,31]
[341340414,1730818265578,-152.24,0.00035,31]
[341340416,1730818265587,-152.24,0.00035,31]
[341340418,1730818265597,-152.24,0.00035,31]
[341340420,1730818265606,-152.24,0.00035,31]
[341340422,1730818265617,-152.24,0.00035,31]
[341340424,1730818265626,-152.24,0.00035,31]
[341340426,1730818265635,-152.24,0.00035,31]
[341340428,1730818265645,-500.0,0.00035068,3]
[341340430,1730818265654,-6430.77,0.00035068,3]
[341340432,1730818265664,-536.46,0.00035068,3]
[341340434,1730818265674,-1182.57,0.00035068,3]
[341340436,1730818265683,-500.0,0.00035068,3]
[341340438,1730818265692,-500.0,0.00035068,3]
[341340444,1730818265748,-584.49266168,0.00035068,3]
[341340446,1730818265758,-4342.61,0.00035068,3]
[341340449,1730818265769,-2792.42,0.00035068,3]
[341340451,1730818265778,-500.0,0.00035068,3]
[341340452,1730818265787,-10907.81,0.00035068,3]
[341340454,1730818265797,-1203.2,0.00035068,3]
[341340456,1730818265806,-2294.71,0.00035068,3]
[341340458,1730818265819,-1321.17,0.00035068,3]
[341340460,1730818265828,-500.0,0.00035068,3]
[341340462,1730818265838,-2053.35,0.00035068,3]
[341340464,1730818265847,-655.41,0.00035068,3]
[341340467,1730818265857,-1000.0,0.00035068,116]
[341340469,1730818265867,-1000.0,0.00035068,116]
[341340471,1730818265876,-1000.0,0.00035068,116]
[341340473,1730818265886,-1000.0,0.00035068,116]
[341340475,1730818265895,-1000.0,0.00035068,116]
[341340477,1730818265904,-1000.0,0.00035068,116]
[341340478,1730818265913,-1000.0,0.00035068,116]
[341340480,1730818265922,-1000.0,0.00035068,116]
[341340483,1730818265932,-1000.0,0.00035068,116]
[341340484,1730818265941,-978.81967925,0.00035068,116]
[341340486,1730818265951,-1368.03,0.00035068,3]
[341340489,1730818265962,-601.61,0.00035068,3]
[341340491,1730818265973,-800.4,0.00035068,3]
[341340493,1730818265985,-242.628319,0.00035154,2]
[341340495,1730818265996,-160.0,0.00035191,5]
[341340497,1730818266006,-5315.8827348,0.00035309,2]
[341340499,1730818266015,-500.0,0.00035342,16]
[341340501,1730818266025,-500.0,0.00035342,3]
[341340503,1730818266036,-6430.77,0.00035342,3]
[341340505,1730818266046,-536.46,0.00035342,3]
[341340507,1730818266057,-1182.57,0.00035342,3]
[341340509,1730818266070,-500.0,0.00035342,3]
[341340511,1730818266080,-500.0,0.00035342,3]
[341340513,1730818266089,-4342.61,0.00035342,3]
[341340515,1730818266099,-2792.42,0.00035342,3]
[341340518,1730818266109,-500.0,0.00035342,3]
[341340520,1730818266118,-10907.81,0.00035342,3]
[341340522,1730818266128,-1203.2,0.00035342,3]
[341340524,1730818266138,-2294.71,0.00035342,3]
[341340526,1730818266147,-1321.17,0.00035342,3]
[341340528,1730818266162,-464.19450015,0.00035342,3]
[341340531,1730818266183,-2053.35,0.00035342,3]
[341340534,1730818266199,-655.41,0.00035342,3]
[341340537,1730818266220,-1368.03,0.00035342,3]
[341340540,1730818266242,-601.61,0.00035342,3]
[341340543,1730818266259,-800.4,0.00035342,3]
[341340546,1730818266279,-313793.2620273,0.00035386,60]
[341340549,1730818266294,-162.886,0.00035413,120]